Cogmind - Beta 17 @@@ ROGUE MODE // 2026.07.09 @ 10:13:09 Player: osman sinnoks Result: Self-destructed Performance ------------- Evolutions (2) 1000 Regions Visited (4) 800 Robots Destroyed (16) 80 Value Destroyed (380) 380 Prototype IDs (1) 20 Alien Tech Used (0) 0 Bonus (0) 0 TOTAL SCORE: 2280 Bonus ------- None Cogmind --------- Core Integrity 440/550 Matter 274/300 Energy 100/100 System Corruption 0% Temperature Warning (303) Movement Walking (185) Ox1 Location -8/Materials Parts ------- > --- POWER (1) -------- (None) > --- PROPULSION (3) --- Titanium Leg > --- UTILITY (4) ------ Large Storage Unit Hardened Medium Armor Plating > --- WEAPON (3) ------- Enhanced Autogun Battle Cannon > --- INVENTORY (15) --- Subdweller Power Source Light Nuclear Core Aluminum Leg Aluminum Leg Aluminum Leg Small Storage Unit Medium Matter Pod (100) Large Matter Pod (150) Light Armor Plating Heavy Armor Plating Shield Generator Medium Laser Medium Laser Peak State ------------ > --- POWER ------------ Light Nuclear Core > --- PROPULSION ------- Carbon-fiber Leg Carbon-fiber Leg Titanium Leg > --- UTILITY ---------- Large Storage Unit Compact Matter Pod Seismic Detector Hardened Medium Armor Plating > --- WEAPON ----------- Enhanced Autogun Enhanced Autogun Battle Cannon > --- INVENTORY -------- Subdweller Power Source Light Nuclear Core Aluminum Leg Aluminum Leg Aluminum Leg Small Storage Unit Medium Matter Pod Large Matter Pod Light Armor Plating Heavy Armor Plating Shield Generator Medium Laser Medium Laser Battle Cannon [Rating: 32] Favorites ----------- Power Light Ion Engine Engine Light Ion Engine Power Core Light Nuclear Core Propulsion Aluminum Leg Leg Aluminum Leg Utility Seismic Detector Device Seismic Detector Storage Small Storage Unit Protection Hardened Medium Armor Plating Weapon Battle Cannon Energy Gun EM Pulse Gun Ballistic Gun Enhanced Autogun Ballistic Cannon Battle Cannon Build | -11 -10 -10 -10 -8 ------- Run | Yrd Mat Min Sub Mat Slots Evolved 4 | . . . . 4 Power . | . . . . . Propulsion 1 | . . . . 1 Utility 2 | . . . . 2 Weapon 1 | . . . . 1 Parts Attached 20 | 7 . . 3 10 Power 2 | 1 . . 1 . Engine 1 | 1 . . . . Core 1 | . . . 1 . Reactor . | . . . . . Propulsion 6 | 2 . . . 4 Treads . | . . . . . Leg 6 | 2 . . . 4 Wheel . | . . . . . Hover . | . . . . . Flight . | . . . . . Utility 5 | 2 . . . 3 Device 1 | 1 . . . . Storage 3 | 1 . . . 2 Processor . | . . . . . Hackware . | . . . . . Protection 1 | . . . . 1 Artifact . | . . . . . Weapon 7 | 2 . . 2 3 Energy Gun 3 | 2 . . . 1 Energy Cannon . | . . . . . Ballistic Gun 2 | . . . . 2 Ballistic Cannon 2 | . . . 2 . Launcher . | . . . . . Special Weapon . | . . . . . Impact Weapon . | . . . . . Slashing Weapon . | . . . . . Piercing Weapon . | . . . . . Special Melee Weapon . | . . . . . Unidentified Prototypes 1 | . . . . 1 Parts Lost 8 | . . . 1 7 Power 2 | . . . 1 1 Propulsion 2 | . . . . 2 Utility 2 | . . . . 2 Weapon 2 | . . . . 2 Highest Loss Streak 7 | . . . 1 7 To Critical Strikes . | . . . . . Average Backups 6 | 2 3 5 7 9 Power 1 | . 1 1 1 1 Propulsion . | . . . . 2 Utility 3 | . 1 3 4 3 Weapon 1 | 1 1 1 1 1 Tool/Special . | . . . . . Unused Backups 10 | . . 2 1 7 Power 3 | . . . 1 2 Propulsion . | . . . . . Utility 7 | . . 2 . 5 Weapon . | . . . . . Tool/Special . | . . . . . Average Slot Usage (%) 98 | . 100 100 99 95 Engine 8 | . 14 14 8 . Core 3 | . . . 4 8 Leg 27 | . 28 28 28 26 Device 12 | . 14 14 14 8 Storage 14 | . 14 14 14 17 Protection 1 | . . . . 7 Energy Gun 16 | . 28 28 13 3 Ballistic Gun 2 | . . . . 8 Ballistic Cannon 9 | . . . 14 14 Peak Build Rating 32 | 7 7 7 12 32 Average Rating 11 | 4 7 7 9 25 On Entrance 6 | . 7 7 7 12 Avg Prop Armor Cover (%) . | . . . . . Naked Turns . | . . . . . Heaviest Build 44 | 13 13 13 17 44 Greatest Support 47 | 20 20 20 20 47 Greatest Overweight (x) 1 | . . . . 1 Average Overweight (x) . | . . . . . Largest Inventory Capacity 15 | 8 8 8 8 15 Average Capacity 9 | 7 8 8 8 14 Most Carried 15 | 5 6 6 8 15 Average Carried 6 | 2 2 5 7 9 Final Capacity 15 | 8 8 8 8 15 Final Carried 14 | 2 6 6 8 14 Class Distribution -------------------- 77% | Mutant 20% | Tank Dominant Class ---------------- Mutant | -10/Materials Mutant | -10/Mines Mutant | -10/Subcaves Tank | -8/Materials Resources | -11 -10 -10 -10 -8 ----------- Run | Yrd Mat Min Sub Mat Matter Collected 908 | 270 . 244 120 274 Remotely . | . . . . . Salvage Created 473 | 53 . . 102 318 Parts 27 | 6 . . 5 16 Haulers Intercepted . | . . . . . Recyclers Shooed . | . . . . . Parts Field Recycled . | . . . . . Retrieved Matter . | . . . . . Parts Self-Destructed 4 | . . . 4 . Prevented . | . . . . . Parts Restored . | . . . . . Kills | -11 -10 -10 -10 -8 ------- Run | Yrd Mat Min Sub Mat Combat Hostiles Destroyed 12 | . . . 3 9 Guns 1 | . . . . 1 Cannons 11 | . . . 3 8 Classes Destroyed 6 | 1 . . 1 4 Tunneler 2 | 2 . . . . Recycler 1 | . . . . 1 Watcher 1 | . . . . 1 Swarmer 6 | . . . . 6 Sentry 3 | . . . . 3 Subdweller 3 | . . . 3 . Best Kill Streak 6 | 1 . . 2 6 Combat Bots Only 5 | . . . 2 5 Max Kills in Single Turn 1 | 1 . . 1 1 Gunslinging . | . . . . . Exploded . | . . . . . Melee . | . . . . . Uniques/NPCs Destroyed . | . . . . . Combat | -11 -10 -10 -10 -8 -------- Run | Yrd Mat Min Sub Mat Hostile Shots Fired 113 | . . . 10 103 Missed 18 | . . . 2 16 Hits 95 | . . . 8 87 Projectile 95 | . . . 8 87 Critical Strikes 3 | . . . . 3 Damage Taken 1180 | . . . 203 977 Core 152 | . . . 42 110 Absorbed by Shields . | . . . . . Core Remaining (%) 91 | 100 . . 83 . Volleys Fired 48 | 9 . . 8 31 Largest 3 | 2 . . 2 3 Hottest 91 | 90 . . 73 91 Shots Fired 118 | 18 . . 16 84 Gun 67 | 18 . . 7 42 Cannon 51 | . . . 9 42 Launcher . | . . . . . Special . | . . . . . Kinetic 93 | . . . 9 84 Thermal 9 | 9 . . . . Explosive . | . . . . . Electromagnetic 16 | 9 . . 7 . Robot Hit Streak 10 | 5 . . 10 6 Robot Miss Streak 4 | 4 . . 1 3 Penetration Max . | . . . . . Secondary Targets . | . . . . . Shots Hit Robots 73 | 9 . . 14 50 Core Hits 18 | 2 . . 4 12 Critical Kills . | . . . . . Critical Parts Destroyed . | . . . . . Critical Strikes 1 | . . . 1 . Blast 1 | . . . 1 . Melee Attacks . | . . . . . Impact . | . . . . . Slashing . | . . . . . Piercing . | . . . . . Sneak Attacks . | . . . . . Combat Hostiles . | . . . . . Follow-up Attacks . | . . . . . Damage Inflicted 1286 | 113 . . 228 945 Guns 637 | 113 . . 64 460 Cannons 637 | . . . 163 474 Explosions . | . . . . . Melee . | . . . . . Ramming 12 | . . . 1 11 Kinetic 1097 | . . . 163 934 Thermal 74 | 74 . . . . Explosive . | . . . . . Electromagnetic 103 | 39 . . 64 . Impact . | . . . . . Slashing . | . . . . . Piercing . | . . . . . Highest Corruption . | . . . . . Average Corruption . | . . . . . Corruption Purged . | . . . . . Corruption Blocked . | . . . . . Overload Shots . | . . . . . Overflow Damage 18 | . . . . 18 Projectiles 18 | . . . . 18 Explosions . | . . . . . Melee . | . . . . . Knockbacks 10 | . . . 2 8 Impact . | . . . . . Kinetic 9 | . . . 2 7 Secondary 1 | . . . . 1 Self-Inflicted Damage . | . . . . . Shots . | . . . . . Rammed . | . . . . . Targets Rammed 2 | . . . 1 1 Kicked 2 | . . . 1 1 Crushed . | . . . . . Highest Temperature 408 | 180 . . . 408 Average Temperature 148 | 78 . . . 172 Received Heat Transfer 255 | . . . 48 207 Effects 3 | . . . . 3 Energy Bleed 1 | . . . . 1 Interference 2 | . . . . 2 Siege Activations . | . . . . . Martial Activations . | . . . . . Shielding Activations . | . . . . . Robots Disrupted . | . . . . . Combat Hostiles . | . . . . . Robots Corrupted . | . . . . . Combat Hostiles . | . . . . . Parts Fried . | . . . . . Impact Corruptions . | . . . . . Robots Melted . | . . . . . Combat Hostiles . | . . . . . Parts Melted . | . . . . . Heat Transferred 222 | 222 . . . . Parts Sabotaged . | . . . . . Parts Stolen . | . . . . . Parts Stripped . | . . . . . Power Chain Reactions . | . . . . . Alert | -11 -10 -10 -10 -8 ------- Run | Yrd Mat Min Sub Mat Maximum Alert Level 1 | . . . . 1 Low Security (%) 96 | 100 100 100 . 91 Level 1 3 | . . . . 8 Level 2 . | . . . . . Level 3 . | . . . . . Level 4 . | . . . . . Level 5 . | . . . . . High Security . | . . . . . Max Security . | . . . . . Peak Influence 231 | 5 . . . 231 Initial . | . . . . . Average 28 | 1 . . . 79 Influence Increases 321 | 10 . . . 311 Destroy 0b10 Robot/C 180 | . . . . 180 Destroy 0b10 Robot/NC 20 | 10 . . . 10 Destroy Leader 42 | . . . . 42 Disable Machine 30 | . . . . 30 Destroy Structure 4 | . . . . 4 Lose Combat Pursuer 45 | . . . . 45 Influence Decreases 160 | 10 . . . 150 Time Decay 90 | 10 . . . 80 Lost Part 70 | . . . . 70 Squads Dispatched 2 | . . . . 2 Investigation . | . . . . . Extermination . | . . . . . Reinforcement . | . . . . . Assault . | . . . . . Garrison 2 | . . . . 2 Intercept . | . . . . . Searches Triggered . | . . . . . Construction Impeded . | . . . . . Haulers Reinforced . | . . . . . Active Scanning Responses . | . . . . . Cargo Convoy Interrupts . | . . . . . Stealth | -11 -10 -10 -10 -8 --------- Run | Yrd Mat Min Sub Mat Distress Signals . | . . . . . Communications Jammed . | . . . . . Distress Signals . | . . . . . Times Spotted 18 | . 1 . 3 14 Peak Tracking Total 5 | . 2 . 2 5 Tactical Retreats 1 | . . . . 1 Traps | -11 -10 -10 -10 -8 ------- Run | Yrd Mat Min Sub Mat Traps Triggered 2 | . . . 1 1 Indirectly . | . . . . . Trap Hack Attempts . | . . . . . Triggered . | . . . . . Disarmed . | . . . . . Reprogrammed . | . . . . . Reused . | . . . . . Traps Extracted . | . . . . . Installed . | . . . . . Triggered . | . . . . . Machines | -11 -10 -10 -10 -8 ---------- Run | Yrd Mat Min Sub Mat Machines Disabled 2 | . . . . 2 Max in Single Turn 1 | . . . . 1 Machines Repaired . | . . . . . Machines Dismantled . | . . . . . Machines Sabotaged . | . . . . . Overloaded Fab Kills . | . . . . . Hacking | -11 -10 -10 -10 -8 --------- Run | Yrd Mat Min Sub Mat Machines Accessed 5 | . 1 . 1 3 Terminals . | . . . . . Fabricators . | . . . . . Repair Stations 1 | . . . . 1 Recycling Units 2 | . 1 . . 1 Scanalyzers 1 | . . . . 1 Garrison Access . | . . . . . Total Hacks 13 | . 1 . 4 8 Successful 10 | . 1 . 4 5 Failed 2 | . . . . 2 Catastrophic . | . . . . . Database Lockouts 1 | . . . . 1 Manual . | . . . . . Terminals . | . . . . . Fabricators . | . . . . . Repair Stations 2 | . . . . 2 Recycling Units 4 | . 1 . . 3 Scanalyzers 3 | . . . . 3 Garrison Access . | . . . . . Terminal Hacks 4 | . . . 4 . Record 4 | . . . 4 . Fabricator Hacks . | . . . . . Repair Station Hacks 1 | . . . . 1 Scan Component 1 | . . . . 1 Recycling Unit Hacks 3 | . 1 . . 2 Report Inventory 2 | . 1 . . 1 Retrieve Components 1 | . . . . 1 Scanalyzer 2 | . . . . 2 Retrieve Study 2 | . . . . 2 Garrison Access Hacks . | . . . . . Unauthorized Hacks . | . . . . . Terminals . | . . . . . Fabricators . | . . . . . Repair Stations . | . . . . . Recycling Units . | . . . . . Scanalyzers . | . . . . . Garrison Access . | . . . . . Data Cores Recovered . | . . . . . Used . | . . . . . Hacking Detections 3 | . 1 . . 2 Full Trace Events . | . . . . . Feedback Events . | . . . . . Feedback Blocked . | . . . . . Robot Schematics Acquired . | . . . . . Robots Built . | . . . . . Authchips . | . . . . . Time . | . . . . . Total Robot Build Rating . | . . . . . Part Schematics Acquired . | . . . . . Parts Built . | . . . . . Authchips . | . . . . . Time . | . . . . . Total Part Build Rating . | . . . . . Part Studies Acquired 2 | . . . . 2 Parts Repaired . | . . . . . Time . | . . . . . Parts Recycled . | . . . . . Recycled Matter . | . . . . . Retrieved Matter . | . . . . . Retrieved Components 2 | . . . . 2 Parts Scanalyzed . | . . . . . Part Schematics Acquired . | . . . . . Parts Damaged . | . . . . . Bothacking | -11 -10 -10 -10 -8 ------------ Run | Yrd Mat Min Sub Mat Used RIF Installer . | . . . . . Robots Hacked . | . . . . . Non-combat . | . . . . . Combat . | . . . . . Robot Hacks Applied . | . . . . . Relay Couplers Released . | . . . . . Fabnet Peak Effective % . | . . . . . Robots Rewired . | . . . . . Allies Hacked . | . . . . . Hacks Repelled . | . . . . . Allies | -11 -10 -10 -10 -8 -------- Run | Yrd Mat Min Sub Mat Total Allies 3 | . . 3 . . Largest Group 3 | . . 3 3 . Highest-Rated Group 40 | . . 40 40 . Highest-Rated Ally 16 | . . 16 16 . Total Orders . | . . . . . Ally Attacks 7 | . . . 7 . Total Damage 75 | . . . 75 . Kills . | . . . . . Allies Corrupted . | . . . . . Allies Melted . | . . . . . Intel | -11 -10 -10 -10 -8 ------- Run | Yrd Mat Min Sub Mat Active Infowar (turns) 1343 | 1 74 424 526 318 Seismic 1343 | 1 74 424 526 318 Robot Analysis Total . | . . . . . Derelict Logs Recovered 2 | . . 1 1 . Drone Launches . | . . . . . Drone Recoveries . | . . . . . Exploration | -11 -10 -10 -10 -8 ------------- Run | Yrd Mat Min Sub Mat Turns Passed 1435 | 81 74 424 526 330 Spaces Moved 992 | 43 59 336 393 161 Core 16 | 16 . . . . Treads . | . . . . . Legs 976 | 27 59 336 393 161 Wheels . | . . . . . Hover . | . . . . . Flight . | . . . . . Fastest Speed 50 | 50 120 120 120 108 Average Speed 122 | 93 120 120 120 140 Slowest Speed 193 | 120 120 120 120 193 Overloaded Moves . | . . . . . Propulsion Burnouts . | . . . . . Robots Hopped . | . . . . . Potential Cave-ins . | . . . . . Cave-ins Triggered . | . . . . . Exploration Rate (%) 26 | 3 10 68 32 19 Regions Visited 4 Branch Regions 2 Pre-discovered Areas 2 | . . 1 1 . Known Exits Taken . | . . . . . Unknown Exits Taken 4 | 1 1 1 1 . Scrap Searched 3 | . . 1 2 . Spaces Dug . | . . . . . Terrain Destroyed 4 | . . . . 4 Melee . | . . . . . Projectile 4 | . . . . 4 AOE . | . . . . . Terrain Rammed . | . . . . . Walls Destroyed . | . . . . . Machines Disabled . | . . . . . Actions | -11 -10 -10 -10 -8 --------- Run | Yrd Mat Min Sub Mat Total 1127 | 64 62 358 429 214 Wait 36 | . . 19 17 . Move 988 | 42 58 335 392 161 Hop . | . . . . . Pick Up 26 | 6 4 2 4 10 Fast Attach 4 | 3 . . 1 . Attach 10 | 4 . . 1 5 Detach . | . . . . . Swap 8 | . . . 2 6 Drop 5 | . . 2 3 . Fire 48 | 9 . . 8 31 Melee . | . . . . . Ram . | . . . . . Kick 2 | . . . 1 1 Crush . | . . . . . Escape Stasis . | . . . . . Rewire . | . . . . . Trap . | . . . . . Miscellaneous . | . . . . . Route ------- -11/Scrapyard -10/Materials -10/Mines -10/Subcaves -8/Materials History --------- Turn | Location | Event 14 | -11/Scrapyard | Discovered new exit (range 14) 82 | -11/Scrapyard | Entered Materials 96 | -10/Materials | Discovered new exit (range 14) 156 | -10/Materials | Entered Mines 159 | -10/Mines | Assisted by bots powering up and referring to "LRC-V3" 167 | -10/Mines | Met a Derelict bent on vengeance 311 | -10/Mines | Build established: Mutant 325 | -10/Mines | Learned location of Recycling (-9) 571 | -10/Mines | Discovered new exit (range 8) 580 | -10/Mines | Entered Subcaves 580 | -10/Subcaves | Accompanied by 3 allies 581 | -10/Subcaves | Approached by a straggling Scientist 586 | -10/Subcaves | Learned location of Storage (-9) 934 | -10/Subcaves | Lost 4 allies 1078 | -10/Subcaves | Discovered new exit (range 4) 1088 | -10/Subcaves | Visited Clippyterm 1091 | -10/Subcaves | Learned Factory garrison access intel 1106 | -10/Subcaves | Entered Materials 1106 | -8/Materials | Evolved 4 slots: Propulsion x1, Utility x2, Weapon x1 1248 | -8/Materials | Central database locked down 1436 | -8/Materials | Self-destructed Last Messages --------------- 01422_ K-01 Serf collects debris. 01422_ U-05 Engineer works on Purification Channel. 01424_ Seismic Detector destroyed. 01424_ K-01 Serf collects debris. 01425_ U-05 Engineer works on Purification Channel. 01427_ K-01 Serf collects debris. 01428_ Penetrated by Slug. 01428_ Carbon-fiber Leg+ destroyed. 01428_ K-01 Serf collects debris. 01432_ Penetrated by Slug. 01432_ Com. Matter Pod destroyed. 01433_ Enh. Autogun destroyed. 01434_ U-05 Engineer builds a Door. 01434_ Critical hit (Burn: +37). 01434_ K-01 Serf destroyed. 01435_ K-01 Serf collects debris. 01435_ Penetrated by Slug. 01435_ Critical hit (Destroy). Map ----- +----------------------------------------------------+ | ?????????????????????????????????????????????????? | | ?????????????????????????????????????????????????? | | ?????????????????????????????????????????????????? | | ?????????????????????????????????????????????????? | | ?????????????????????????????????????????????????? | | ?????????????????????????????????????????????????? | | ?????????????????????????????????????????????????? | | ?????????????????????????????????????????????????? | | ???????????????????????? ????????????????????? | | ??????????????????????? ???????????????????? | | ????????????????????# ???????????????????? | | ????????????????????# ???????????????????? | | ????????????????????+ ???????????????????? | | ????????????????????# ^ ???????????????????? | | ????????????????????# ???? ?????????????? | | ????????????????????# ! "?? ?????????????? | | ????????????????????# """ <"??????????????? | | ????????????????????# """ <" ? ??????????? | | ????????????????????# """ << ???????? | | ?????????+#?????????# "" << ???????? | | ????????? #?????????# %%% "" <<< #??????? | | ????????# #?????????# ""^% " < #??????? | | ????????# #?????????# "G%% "% < #??????? | | ????????# ########### ""Ys " %uu + ?????? | | ????????# # ## % %[ #??????? | | ????????# # """ ## @*u * Y ]#??????? | | ???????## # "R" ## k############ #??????? | | ???????# # " " ! + u#?????????????????? ? | | ???????# + ###+###+####??????????????# # | | ???????+* # """ # #?????????????? # | | ???????# !# """ # """" #?????????????? | | ???????# # """ !# """"" #?????????????? | | ???????# # = #! """"" #????????????""" | | ???????# ## ####### " #????????????""" # | | ???????# #######=#####################????""" # | | ???????# #%%%%= [!#?????# """"" #????? # | | ???????# #="%% "% #?????# """"" ""#?????? # | | ???????# #[""%" #?????# """"" Y"#??????# # | | ???????# # """" #?????# ""#??????# # | | ???????+ %/ """"" #?????# #??????# # | | ???????# # """"" #?????########+############ # | | ???????# # """"" #######?????# # | | ??????? # """"" # ####### + | | ??????? # += # | | ???????+############# #########+##### ######## | | ?????????????????#??#####?# ! # #??????# | | ??????????????????????????# # #??????# | | ??????????????????????????# # #??????# | | ??????????????????????????# """ "" #####??????? | | ??????????????????????????# """ S"" #??????????? | +----------------------------------------------------+ Best States ------------- Heat Dissipation 31 Energy Generation 14 Energy Capacity 160 Matter Stores 450 Matter Capacity 450 Sight Range 16 Terrain Scan Density 10 Armor Coverage 225 Evasion (%) 55 Item Schematics ----------------- None Robot Schematics ------------------ None Fabricated ------------ Nothing Repaired ---------- Nothing Studied --------- Carbon-fiber Leg | -8/Materials | Hacked Titanium Leg | -8/Materials | Hacked Alien Tech Used ----------------- None Achievements -------------- None Challenges ------------ None Game ------ Seed MetaShockboltGriptreads Manual? 0 Play Time 00:16:19 Cumulative 36.5 hours Start 2026.07.09 @ 09:58:04 End 2026.07.09 @ 10:13:09 Sessions 1 Manual Loads 0 Difficulty Rogue Special Mode None Game No. 80 Rogue 80 Adventurer 0 Explorer 0 Win Type - Total 0 Types 0/0/0/0/0/0/0/0/0/0 Lore% 28 Gallery% 30 Achievement% 21 Wizard Run 0 Options --------- Layout 2 ASCII 0 Keyboard 0 Movement Mouse Keybinds 0 Fullscreen 1 Font 48/Smallcaps Map View 50x44 Zoom Use 0% Tactical HUD 1 Map Filters NONE Filters NONE Steam 1 RUN: a189e30f-e2b7-4cdf-8e72-67cfcc154638